bitfinex/quotes_BTCUSD_20250320
["timestamp","ask_amount","ask_price","bid_price","bid_amount"]
[1742487664677,0.68754388,84531.0,84530.0,4.241e-05]
[1742487664920,0.74554289,84531.0,84530.0,4.241e-05]
[1742487665308,5.88367259,84531.0,84530.0,4.241e-05]
[1742487665512,5.86409756,84531.0,84530.0,4.241e-05]
[1742487665955,6.0425593,84531.0,84530.0,4.241e-05]
[1742487666104,6.0725593,84531.0,84530.0,4.241e-05]
[1742487666304,5.9240793,84531.0,84530.0,4.241e-05]
[1742487666506,5.0079393,84531.0,84530.0,4.241e-05]
[1742487666716,4.97917961,84531.0,84530.0,4.241e-05]
[1742487667146,4.88750365,84531.0,84530.0,4.241e-05]
[1742487667543,4.81746365,84531.0,84530.0,4.241e-05]
[1742487667744,1.7661668,84531.0,84530.0,4.241e-05]
[1742487667946,1.5065768,84531.0,84530.0,4.241e-05]
[1742487668124,1.2208248,84531.0,84530.0,4.241e-05]
[1742487668322,1.23536565,84531.0,84530.0,4.241e-05]
[1742487668824,1.23936565,84531.0,84530.0,4.241e-05]
[1742487669023,1.23436565,84531.0,84530.0,4.241e-05]
[1742487669636,1.23936565,84531.0,84530.0,4.241e-05]
[1742487670041,1.24236565,84531.0,84530.0,4.241e-05]
[1742487670211,1.23836565,84531.0,84530.0,4.241e-05]
[1742487670435,1.23536565,84531.0,84530.0,4.241e-05]
[1742487670635,1.23436565,84531.0,84530.0,4.241e-05]
[1742487670843,1.23036565,84531.0,84530.0,4.241e-05]
[1742487671304,1.23536565,84531.0,84530.0,4.241e-05]
[1742487671646,1.23036565,84531.0,84530.0,4.241e-05]
[1742487672070,0.71364365,84531.0,84530.0,4.241e-05]
[1742487672474,3.69311065,84531.0,84530.0,4.241e-05]
[1742487672696,4.09621065,84531.0,84530.0,4.241e-05]
[1742487672937,4.0816698,84531.0,84530.0,4.241e-05]
[1742487673115,1.2530308,84531.0,84530.0,4.241e-05]
[1742487673316,1.26757165,84531.0,84530.0,4.241e-05]
[1742487674035,1.26257165,84531.0,84530.0,4.241e-05]
[1742487674239,1.25757165,84531.0,84530.0,4.241e-05]
[1742487674630,1.26157165,84531.0,84530.0,4.241e-05]
[1742487675988,1.26457165,84531.0,84530.0,4.241e-05]
[1742487676416,1.26157165,84531.0,84530.0,4.241e-05]
[1742487676822,1.26557165,84531.0,84530.0,4.241e-05]
[1742487677235,1.26157165,84531.0,84530.0,4.241e-05]
[1742487677437,1.25757165,84531.0,84530.0,4.241e-05]
[1742487677639,1.26057165,84531.0,84530.0,4.241e-05]
[1742487677840,1.26557165,84531.0,84530.0,4.241e-05]
[1742487678191,1.26057165,84531.0,84530.0,4.241e-05]
[1742487678529,1.26457165,84531.0,84530.0,4.241e-05]
[1742487679137,1.26157165,84531.0,84530.0,4.241e-05]
[1742487679345,1.25757165,84531.0,84530.0,4.241e-05]
[1742487679506,1.26157165,84531.0,84530.0,4.241e-05]
[1742487679912,1.25757165,84531.0,84530.0,4.241e-05]
[1742487680360,1.26057165,84531.0,84530.0,4.241e-05]
[1742487680766,1.26257165,84531.0,84530.0,4.241e-05]
[1742487681285,1.25757165,84531.0,84530.0,4.241e-05]
[1742487681484,1.26157165,84531.0,84530.0,4.241e-05]
[1742487682234,1.26557165,84531.0,84530.0,4.241e-05]
[1742487682913,1.11974365,84531.0,84530.0,4.241e-05]
[1742487683132,3.29956965,84531.0,84530.0,4.241e-05]
[1742487683737,3.22715965,84531.0,84530.0,4.241e-05]
[1742487683951,0.98562777,84531.0,84530.0,4.241e-05]
[1742487684298,1.1003481,84531.0,84530.0,4.241e-05]
[1742487684501,1.23446398,84531.0,84530.0,4.241e-05]
[1742487684857,1.23046398,84531.0,84530.0,4.241e-05]
[1742487685834,1.23346398,84531.0,84530.0,4.241e-05]
[1742487686974,1.25201764,84531.0,84530.0,4.241e-05]
[1742487687404,1.33101764,84531.0,84530.0,4.241e-05]
[1742487688263,1.33135664,84531.0,84530.0,4.241e-05]
[1742487688475,1.32835664,84531.0,84530.0,4.241e-05]
[1742487688879,1.33135664,84531.0,84530.0,4.241e-05]
[1742487689089,1.32735664,84531.0,84530.0,4.241e-05]
[1742487689264,1.32435664,84531.0,84530.0,4.241e-05]
[1742487689710,1.40415664,84531.0,84530.0,4.241e-05]
[1742487689913,1.40415664,84531.0,84516.0,1.9e-07]
[1742487689914,0.536638,84517.0,84516.0,1.9e-07]
[1742487690135,1.23376488,84517.0,84516.0,0.00041737]
[1742487690351,1.09322066,84517.0,84516.0,0.00041737]
[1742487690529,0.94727378,84517.0,84516.0,0.00041737]
[1742487690762,0.9776608,84517.0,84516.0,0.00041737]
[1742487691296,2.1391198,84517.0,84516.0,0.00041737]
[1742487691511,2.7530058,84517.0,84516.0,0.00041737]
[1742487692181,2.0033548,84517.0,84516.0,0.00041737]
[1742487692387,2.0063548,84517.0,84516.0,0.00041737]
[1742487692600,2.0033548,84517.0,84516.0,0.00041737]
[1742487692787,1.9769788,84517.0,84516.0,0.00041737]
[1742487693002,1.9789788,84517.0,84516.0,0.00041737]
[1742487693213,0.3,84504.0,84500.0,0.06192709]
[1742487693415,0.3,84504.0,84502.0,0.23668]
[1742487693669,0.3,84504.0,84503.0,0.236677]
[1742487693818,0.3,84504.0,84503.0,0.316477]
[1742487693819,0.31855572,84504.0,84503.0,0.316477]
[1742487694354,0.32108828,84504.0,84503.0,0.316477]
[1742487694646,0.02108828,84504.0,84503.0,0.316477]
[1742487694898,0.02108828,84504.0,84503.0,0.32831]
[1742487695108,0.01855572,84504.0,84503.0,0.32831]
[1742487695923,0.01855572,84504.0,84503.0,0.316477]
[1742487696677,0.01855572,84504.0,84503.0,1.5]
[1742487696883,0.02109073,84504.0,84503.0,1.5]
[1742487697080,0.236683,84502.0,84500.0,0.06192709]
[1742487697287,0.3,84501.0,84500.0,0.06192709]
[1742487697491,0.53921801,84501.0,84500.0,0.06192709]
[1742487697756,0.53921801,84501.0,84500.0,1.56192709]
[1742487698344,0.55105201,84501.0,84500.0,0.06192709]
[1742487698539,0.00253501,84501.0,84500.0,0.06192709]
[1742487698920,0.3,84506.0,84500.0,0.29861309]
[1742487699295,0.3,84506.0,84505.0,0.236672]
[1742487699500,0.3,84506.0,84505.0,0.234672]
[1742487699683,0.3,84506.0,84503.0,0.236675]
[1742487699880,0.3,84509.0,84505.0,1.5]
[1742487700092,0.001,84506.0,84500.0,0.06192709]
[1742487700265,0.001,84506.0,84505.0,0.236672]
[1742487700498,0.001,84506.0,84505.0,0.513725]
[1742487700717,0.001,84506.0,84505.0,0.63330003]
[1742487701380,0.3,84514.0,84513.0,0.248481]
[1742487701790,0.3,84514.0,84513.0,0.36805603]
[1742487702004,0.00075509,84517.0,84516.0,0.236641]
[1742487702212,0.00075509,84517.0,84516.0,0.44744803]
[1742487702416,0.00075509,84517.0,84516.0,0.0794]
[1742487702620,0.00075509,84517.0,84510.0,0.236657]
[1742487702621,0.3,84514.0,84510.0,0.0794]
[1742487702825,0.3,84514.0,84511.0,0.236655]
[1742487702994,0.3,84514.0,84513.0,0.001]
[1742487703410,0.3,84514.0,84511.0,0.236654]
[1742487703784,0.30075509,84517.0,84511.0,0.236654]
[1742487703988,0.30075509,84517.0,84512.0,0.14312]
[1742487705060,0.54922609,84517.0,84516.0,0.002]
[1742487705212,0.011832,84513.0,84508.0,0.14308]
[1742487705612,0.548482,84513.0,84512.0,0.001]
[1742487705825,0.536655,84512.0,84505.0,0.379751]
[1742487706202,0.3,84512.0,84505.0,0.14308]
[1742487706661,0.3,84512.0,84508.0,0.236661]
[1742487706808,0.01855443,84511.0,84508.0,0.236661]
[1742487707013,0.3,84510.0,84505.0,0.379749]
[1742487707211,0.01855443,84511.0,84506.0,0.236666]
[1742487707505,0.01855443,84511.0,84505.0,0.14308]
[1742487707506,0.3,84510.0,84505.0,0.14308]
[1742487707706,0.3,84510.0,84505.0,0.379751]
[1742487708175,0.3,84510.0,84505.0,0.14308]
[1742487708323,0.3,84510.0,84506.0,1.5]
[1742487708518,0.01855443,84511.0,84506.0,1.736669]
[1742487708923,0.01855443,84511.0,84508.0,0.236661]
[1742487709282,0.01855443,84511.0,84510.0,0.236658]
[1742487709901,0.01855443,84511.0,84508.0,1.5]
[1742487710115,0.01855443,84511.0,84509.0,0.23666]
[1742487710316,0.01855443,84511.0,84510.0,0.236658]
[1742487710545,0.01855443,84511.0,84508.0,1.5]
[1742487710752,0.536669,84506.0,84505.0,0.14308]
[1742487711128,0.3,84506.0,84505.0,0.14308]
[1742487711565,0.3,84505.0,84500.0,0.06209669]
[1742487711769,0.548517,84501.0,84500.0,0.06209669]
[1742487711972,0.3,84501.0,84500.0,0.06209669]
[1742487712158,0.536683,84501.0,84500.0,0.06209669]
[1742487712772,0.3,84501.0,84500.0,0.29878269]
[1742487713402,0.3,84501.0,84500.0,0.31061669]
[1742487713605,0.2998307,84501.0,84500.0,0.50609172]
[1742487714427,0.2998307,84501.0,84500.0,0.50709172]
[1742487715690,0.2998307,84501.0,84500.0,0.50609172]
[1742487716103,0.2998307,84501.0,84500.0,0.65117172]
[1742487717995,0.2998307,84501.0,84500.0,0.57527172]
[1742487718193,0.2998307,84501.0,84500.0,2.07527172]
[1742487721935,0.01855494,84505.0,84504.0,0.236675]
[1742487722317,0.01855494,84505.0,84504.0,0.248508]
[1742487722756,0.01855494,84505.0,84504.0,1.748508]
[1742487723205,0.01855494,84505.0,84504.0,1.749508]
[1742487723358,0.01855494,84505.0,84504.0,1.737675]
[1742487723910,0.01855494,84505.0,84504.0,1.749508]
[1742487724897,0.0003392,84513.0,84512.0,0.248484]
[1742487725102,0.0003392,84513.0,84512.0,0.58993903]
[1742487725662,0.0003392,84513.0,84504.0,1.5249792]
[1742487725869,0.236672,84505.0,84504.0,0.001]
[1742487726169,0.548517,84501.0,84485.0,0.236727]
[1742487726395,0.548517,84501.0,84487.0,0.236721]
[1742487726597,0.55149435,84501.0,84488.0,0.236718]
[1742487727018,0.55149435,84501.0,84487.0,0.236722]
[1742487727178,0.55149435,84501.0,84488.0,0.236717]
[1742487727377,0.55149435,84501.0,84489.0,0.236712]
[1742487727838,0.55149435,84501.0,84500.0,0.06309669]
[1742487728829,0.30297735,84501.0,84500.0,0.06309669]
[1742487729178,0.55821666,84501.0,84500.0,0.06209669]
[1742487729533,0.32253366,84501.0,84500.0,0.06209669]
[1742487729756,0.32353366,84501.0,84500.0,0.31061669]
[1742487729957,0.32353366,84501.0,84500.0,0.45377669]
[1742487730178,0.32353366,84501.0,84500.0,0.45477669]
[1742487731007,0.32153366,84501.0,84500.0,0.45477669]
[1742487731419,0.30297735,84501.0,84500.0,0.45677669]
[1742487732206,0.30297735,84501.0,84500.0,0.57635172]
[1742487732407,0.00297735,84501.0,84500.0,0.57635172]
[1742487732811,0.3,84501.0,84500.0,0.20625669]
[1742487733017,0.0003384,84505.0,84503.0,0.236677]
[1742487733233,0.0003384,84505.0,84504.0,0.236675]
[1742487733700,0.3,84502.0,84500.0,0.06509669]
[1742487733908,0.3,84502.0,84501.0,0.14312]
[1742487734134,0.3,84502.0,84501.0,0.379803]
[1742487734347,0.3,84502.0,84501.0,0.391637]
[1742487734743,0.0003384,84505.0,84504.0,0.248508]
[1742487734947,0.0003384,84505.0,84504.0,0.391588]
[1742487735201,0.0003384,84505.0,84504.0,0.51116303]
[1742487736031,0.0003384,84505.0,84504.0,0.51416303]
[1742487736232,0.29440653,84513.0,84504.0,0.13440803]
[1742487736435,0.011832,84510.0,84504.0,0.14632]
[1742487736645,0.248494,84509.0,84504.0,0.382993]
[1742487736860,0.236658,84510.0,84507.0,0.236666]
[1742487737067,0.236661,84511.0,84507.0,0.236666]
[1742487737274,0.236661,84511.0,84500.0,0.07393069]
[1742487737275,0.011833,84507.0,84500.0,0.06209669]
[1742487737484,0.248517,84501.0,84500.0,0.06209669]
[1742487737700,2.42657388,84501.0,84500.0,0.06209669]
[1742487737903,0.84872688,84501.0,84500.0,0.06209669]
[1742487738122,0.59991852,84501.0,84500.0,0.06209669]
[1742487738373,0.89991852,84501.0,84500.0,0.06209669]
[1742487738569,1.0340344,84501.0,84500.0,0.06209669]
[1742487739348,1.03701131,84501.0,84500.0,0.06209669]
[1742487740735,1.03801131,84501.0,84500.0,0.06209669]
[1742487741193,0.90489543,84501.0,84500.0,0.06209669]
[1742487741395,0.68402543,84501.0,84500.0,0.06209669]
[1742487741567,0.66546791,84501.0,84500.0,0.06209669]
[1742487741782,0.66746791,84501.0,84500.0,0.06209669]
[1742487741951,0.00597691,84501.0,84500.0,0.29878269]
[1742487742174,0.24165991,84501.0,84500.0,0.06209669]
[1742487742336,0.238683,84501.0,84500.0,0.06209669]
[1742487742542,0.00494705,84501.0,84500.0,0.06209669]
[1742487742741,0.24163005,84501.0,84500.0,0.06209669]
[1742487742989,0.25346405,84501.0,84500.0,0.06209669]
[1742487743297,0.25146405,84501.0,84500.0,0.06209669]
[1742487743721,0.00394705,84501.0,84500.0,0.06209669]
[1742487743918,0.00294705,84501.0,84500.0,0.29878269]
[1742487744122,0.00294705,84501.0,84500.0,0.45377669]
[1742487744328,0.001,84501.0,84500.0,0.45377669]
[1742487744541,0.01955668,84501.0,84500.0,0.45377669]
[1742487744746,0.01855668,84501.0,84500.0,0.44194269]
[1742487745109,0.01855668,84501.0,84500.0,0.44294269]
[1742487747613,0.01855668,84501.0,84500.0,0.45477669]
[1742487747789,0.0003384,84513.0,84512.0,0.248484]
[1742487748291,0.0003384,84513.0,84512.0,1.891804]
[1742487749520,0.0003384,84513.0,84512.0,1.879972]
[1742487750166,0.0003384,84513.0,84512.0,1.891804]
[1742487750376,0.0003384,84513.0,84512.0,2.01137903]
[1742487750748,0.0003384,84513.0,84512.0,2.01237903]
[1742487751072,0.0003384,84513.0,84512.0,2.03644675]
[1742487752040,0.0003384,84513.0,84512.0,2.03744675]
[1742487752240,0.0003384,84513.0,84512.0,2.11314675]
[1742487753014,0.0003384,84513.0,84512.0,2.03544675]
[1742487753718,0.0003384,84513.0,84512.0,2.03844675]
[1742487753840,0.0003384,84513.0,84512.0,2.04144675]
[1742487754041,0.0003384,84513.0,84512.0,2.03844675]
[1742487754395,0.0003384,84513.0,84512.0,2.04344675]
[1742487755476,0.0003384,84513.0,84512.0,1.76571972]
[1742487755694,0.0003384,84513.0,84512.0,0.41279972]
[1742487755898,0.00324211,84513.0,84512.0,0.41279972]
[1742487756719,0.00324211,84513.0,84512.0,0.26471972]
[1742487757180,0.00324211,84513.0,84512.0,0.26871972]
[1742487757895,0.00324211,84513.0,84512.0,0.28055172]
[1742487758100,0.0003384,84513.0,84512.0,0.28055172]
[1742487758302,0.00322821,84513.0,84512.0,0.40012675]
[1742487758510,0.0003384,84513.0,84512.0,1.97732675]
[1742487758716,0.0003384,84513.0,84512.0,1.98032675]
[1742487759699,0.0003384,84513.0,84512.0,1.97332675]
[1742487759906,4e-07,84513.0,84512.0,1.97832675]
[1742487760129,4e-07,84513.0,84512.0,1.98132675]
[1742487760280,4e-07,84513.0,84512.0,1.97632675]
[1742487760688,4e-07,84513.0,84512.0,1.98232675]
[1742487761098,4.9e-07,84517.0,84516.0,0.248473]
[1742487761304,4.9e-07,84517.0,84516.0,0.36804803]
[1742487762468,0.00100049,84517.0,84516.0,0.37304803]
[1742487762886,4.9e-07,84517.0,84516.0,0.37304803]
[1742487763073,4.9e-07,84517.0,84516.0,0.46204803]
[1742487763287,4.9e-07,84531.0,84516.0,0.50381603]
[1742487763493,4.9e-07,84531.0,84530.0,0.45100703]
[1742487763643,4.9e-07,84531.0,84530.0,1.20592703]
[1742487765475,4.9e-07,84543.0,84542.0,0.327796]
[1742487765835,0.00012522,84543.0,84542.0,1.00421103]
[1742487767453,0.00012522,84543.0,84542.0,2.50421103]
[1742487767673,0.00012522,84543.0,84542.0,2.55931103]
[1742487767957,0.00012522,84543.0,84542.0,2.58485188]
[1742487767958,2.2e-07,84543.0,84542.0,2.58485188]
[1742487769213,2.2e-07,84543.0,84542.0,2.60985188]
[1742487769419,2.2e-07,84543.0,84542.0,2.60385188]
[1742487769624,2.2e-07,84543.0,84542.0,2.59785188]
[1742487769834,2.2e-07,84543.0,84542.0,2.60385188]
[1742487770430,2.2e-07,84543.0,84542.0,2.59785188]
[1742487770628,0.0001695,84567.0,84566.0,0.375226]
[1742487770836,0.0001695,84567.0,84566.0,1.34474103]
[1742487771038,0.0001695,84567.0,84566.0,1.23941503]
[1742487771240,0.0001695,84567.0,84566.0,1.11984]
[1742487771440,0.0001695,84567.0,84566.0,1.131665]
[1742487771640,0.00326073,84567.0,84566.0,1.25124003]
[1742487772022,0.0001695,84567.0,84566.0,1.25124003]
[1742487772222,0.0001695,84567.0,84566.0,1.25724003]
[1742487772463,0.0001695,84567.0,84566.0,1.25124003]
[1742487772664,0.0001695,84567.0,84566.0,1.25724003]
[1742487772869,0.0001695,84567.0,84566.0,1.26124003]
[1742487773066,0.0001695,84567.0,84566.0,1.25524003]
[1742487773445,0.0001695,84567.0,84566.0,1.26124003]
[1742487774269,0.0001695,84567.0,84566.0,1.141852]
[1742487774474,0.0001695,84567.0,84566.0,1.284852]
[1742487774917,0.0001695,84567.0,84566.0,1.521353]
[1742487775413,0.0001695,84567.0,84566.0,1.107553]
[1742487777491,0.0001695,84567.0,84566.0,2.607553]
[1742487780378,0.3001695,84567.0,84566.0,2.33315297]
[1742487780625,0.3031146,84567.0,84566.0,2.48793797]
[1742487780828,0.3031146,84567.0,84566.0,2.23961197]
[1742487781006,0.3031146,84567.0,84566.0,2.47611297]
[1742487781208,0.3001695,84567.0,84566.0,2.48793797]
[1742487782005,0.3001695,84567.0,84566.0,2.47793797]
[1742487782415,0.3001695,84567.0,84566.0,2.48093797]
[1742487782741,0.3001695,84567.0,84566.0,2.599513]
[1742487782896,0.3001695,84567.0,84566.0,2.597513]
[1742487783099,0.3001695,84567.0,84566.0,2.599513]
[1742487783610,0.3001695,84567.0,84566.0,2.597513]
[1742487784095,0.3001695,84567.0,84566.0,2.036473]
[1742487784806,0.3001695,84567.0,84566.0,2.037473]
[1742487785012,0.0001695,84567.0,84566.0,2.117673]
[1742487785223,5e-07,84567.0,84566.0,2.116673]
[1742487785424,5e-07,84567.0,84566.0,2.114673]
[1742487785540,5e-07,84567.0,84566.0,2.115673]
[1742487785743,5e-07,84567.0,84566.0,2.118673]
[1742487786162,5e-07,84567.0,84566.0,2.121673]
[1742487786404,5e-07,84567.0,84566.0,2.114673]
[1742487786610,5e-07,84567.0,84566.0,2.120673]
[1742487786813,5e-07,84567.0,84566.0,2.040473]
[1742487787211,5e-07,84567.0,84566.0,2.034473]
[1742487787885,5e-07,84567.0,84566.0,2.040473]
[1742487788086,5e-07,84567.0,84566.0,2.034473]
[1742487788546,5e-07,84567.0,84566.0,2.045473]
[1742487788892,5e-07,84567.0,84566.0,2.039473]
[1742487789305,5e-07,84567.0,84566.0,2.040473]
[1742487789499,5e-07,84567.0,84566.0,2.046473]
[1742487789707,5e-07,84567.0,84566.0,2.040473]
[1742487789909,5e-07,84567.0,84566.0,2.046473]
[1742487790111,5e-07,84567.0,84566.0,2.460273]
[1742487791028,5e-07,84567.0,84566.0,2.454273]
[1742487791237,0.2483225,84567.0,84566.0,0.03561197]
[1742487791450,0.6265225,84567.0,84566.0,0.012]
[1742487791670,0.62948363,84567.0,84566.0,0.012]
[1742487792026,1.03670363,84567.0,84566.0,0.012]
[1742487792219,0.548343,84560.0,84559.0,0.14296]
[1742487792633,0.311827,84548.0,84543.0,0.0003384]
[1742487792870,0.548391,84544.0,84543.0,0.0003384]
[1742487793034,0.800449,84544.0,84543.0,0.0003384]
[1742487793246,0.80341013,84544.0,84543.0,0.0003384]
[1742487795174,0.80441013,84544.0,84543.0,0.0003384]
[1742487795754,0.82295904,84544.0,84543.0,0.0003384]
[1742487797871,0.57090104,84544.0,84543.0,0.0003384]
[1742487798933,0.32251004,84544.0,84543.0,0.0003384]
[1742487799495,0.02251004,84544.0,84543.0,0.13174143]
[1742487799697,0.001,84544.0,84543.0,0.13174143]
[1742487800803,0.001,84544.0,84543.0,0.13410674]
[1742487801012,0.001,84544.0,84543.0,0.27474143]
[1742487801219,0.001,84544.0,84543.0,0.1433384]
[1742487801425,0.3,84548.0,84547.0,0.011827]
[1742487801827,0.3,84548.0,84547.0,0.51095603]
[1742487802427,0.3,84552.0,84551.0,0.24837]
[1742487803442,0.011827,84550.0,84548.0,0.11957503]
[1742487803599,0.011827,84550.0,84547.0,0.15]
[1742487803600,0.311827,84548.0,84547.0,0.15]
[1742487804033,1.334706,84548.0,84547.0,0.007]
[1742487804238,0.615862,84548.0,84547.0,0.003]
[1742487804424,0.507672,84548.0,84547.0,0.003]
[1742487804847,0.3804,84548.0,84547.0,0.003]
[1742487805050,0.011828,84544.0,84543.0,0.0003384]
[1742487805284,0.548391,84544.0,84543.0,0.0003384]
[1742487805485,2.71271885,84544.0,84543.0,0.0003384]
[1742487805640,2.31725385,84544.0,84543.0,0.0003384]
[1742487806073,2.02272785,84544.0,84543.0,0.0003384]
[1742487806247,2.02272785,84544.0,84543.0,0.0033384]
[1742487806532,1.33411585,84544.0,84543.0,0.0033384]
[1742487807132,1.47224041,84544.0,84543.0,0.0033384]
[1742487807841,1.47224041,84544.0,84543.0,0.0003384]
[1742487809051,1.47324041,84544.0,84543.0,0.0003384]
[1742487809417,0.553517,84501.0,84500.0,8.9e-07]
[1742487809791,0.548531,84496.0,84495.0,8e-05]
[1742487809976,2.15196603,84496.0,84495.0,0.00049589]
[1742487810173,2.16650688,84496.0,84495.0,0.00049589]
[1742487810392,0.56308685,84491.0,84490.0,4.9e-07]
[1742487810676,0.68266188,84491.0,84490.0,4.9e-07]
[1742487812324,0.68466188,84491.0,84490.0,4.9e-07]
[1742487812831,0.68566188,84491.0,84490.0,4.9e-07]
[1742487813037,0.70422359,84491.0,84490.0,4.9e-07]
[1742487814266,0.70699108,84491.0,84490.0,4.9e-07]
[1742487816759,1.11509108,84491.0,84490.0,4.9e-07]
[1742487818591,1.10325608,84491.0,84490.0,4.9e-07]
[1742487818799,1.10325608,84491.0,84490.0,0.51120452]
[1742487818800,0.3243292,84491.0,84490.0,0.51120452]
[1742487818999,0.0243292,84491.0,84490.0,0.51120452]
[1742487819217,0.02156171,84491.0,84490.0,0.51120452]
[1742487819347,0.01856171,84491.0,84490.0,2.01120452]
[1742487819771,0.02056171,84491.0,84490.0,2.01120452]
[1742487819952,0.02256171,84491.0,84490.0,2.01120452]
[1742487820959,0.002,84491.0,84490.0,2.01120452]
[1742487821166,0.00041659,84496.0,84495.0,0.248535]
[1742487821362,0.00041659,84496.0,84495.0,0.36811003]
[1742487824242,0.00041659,84496.0,84495.0,0.37311003]
[1742487824863,0.00041659,84496.0,84495.0,0.14804]
[1742487825025,0.54894759,84496.0,84495.0,0.005]
[1742487825403,0.56750396,84496.0,84495.0,0.005]
[1742487825960,0.31897296,84496.0,84495.0,0.248535]
[1742487826127,0.31897296,84496.0,84495.0,0.254535]
[1742487826739,0.31897296,84496.0,84495.0,0.248535]
[1742487827086,0.31897296,84496.0,84495.0,0.250535]
[1742487827824,0.31897296,84496.0,84495.0,0.002]
[1742487828246,0.31897296,84496.0,84495.0,0.2397]
[1742487828547,0.31897296,84496.0,84495.0,0.251535]
[1742487828748,0.31897296,84496.0,84495.0,1.87111003]
[1742487829748,0.31897296,84496.0,84495.0,1.86911003]
[1742487829861,0.31897296,84496.0,84495.0,1.86811003]
[1742487830076,0.31897296,84496.0,84495.0,1.87211003]
[1742487831378,0.31897296,84496.0,84495.0,1.87511003]
[1742487833187,0.31897296,84496.0,84495.0,2.01815003]
[1742487834070,0.31897296,84496.0,84495.0,1.507]
[1742487834244,0.31897296,84496.0,84495.0,0.007]
[1742487834245,1.39331096,84496.0,84495.0,0.007]
[1742487834444,0.80789817,84496.0,84495.0,0.007]
[1742487834581,0.67872147,84496.0,84495.0,0.007]
[1742487834784,0.76142147,84496.0,84495.0,0.007]
[1742487834987,0.63440147,84496.0,84495.0,0.007]
[1742487835191,0.86049167,84496.0,84495.0,0.004]
[1742487835391,0.86049167,84496.0,84486.0,0.0003386]
[1742487835392,0.548558,84487.0,84486.0,0.0003386]
[1742487835728,0.55100412,84487.0,84486.0,0.0003386]
[1742487836907,0.55200412,84487.0,84486.0,0.0003386]
[1742487838172,0.67157915,84487.0,84486.0,0.0003386]
[1742487838377,1.48236497,84487.0,84486.0,0.0003386]
[1742487838581,0.55200412,84487.0,84486.0,0.0003386]
[1742487838773,0.57056599,84487.0,84486.0,0.0003386]
[1742487839184,0.02200799,84487.0,84486.0,0.0003386]
[1742487839369,0.03384399,84487.0,84486.0,0.0003386]
[1742487839765,0.33384399,84487.0,84486.0,1.5003386]
[1742487840115,0.32100799,84487.0,84486.0,1.7370636]
[1742487840336,0.02100799,84487.0,84486.0,1.7380636]
[1742487840549,0.02100799,84487.0,84486.0,1.5023386]
[1742487840550,0.25772999,84487.0,84486.0,1.5023386]
[1742487840749,0.01856187,84487.0,84486.0,1.5023386]
[1742487840899,0.31856187,84487.0,84486.0,1.5013386]
[1742487841107,0.55528387,84487.0,84486.0,1.5013386]
[1742487841269,0.56956107,84487.0,84486.0,1.5013386]
[1742487841470,0.55772507,84487.0,84486.0,1.5013386]
[1742487841674,0.56956107,84487.0,84486.0,1.5013386]
[1742487842307,0.56956107,84487.0,84486.0,1.5023386]
[1742487842547,0.02100307,84487.0,84486.0,1.5023386]
[1742487843334,0.25772507,84487.0,84486.0,1.5023386]
[1742487843543,0.011835,84491.0,84486.0,1.5023386]
[1742487843544,0.00058589,84496.0,84486.0,1.52623273]
[1742487843748,0.00058589,84496.0,84495.0,0.248535]
[1742487843946,0.00291714,84496.0,84495.0,0.36811003]
[1742487844155,0.00058589,84496.0,84495.0,0.36811003]
[1742487844402,0.57889889,84496.0,84495.0,0.05752198]
[1742487844728,0.30292877,84496.0,84495.0,0.05752198]
[1742487845308,0.23962577,84496.0,84495.0,0.05752198]
[1742487845477,0.25145977,84496.0,84495.0,0.003]
[1742487845686,0.25245977,84496.0,84495.0,0.003]
[1742487845999,0.00392877,84496.0,84494.0,0.2367]
[1742487846208,0.00292877,84496.0,84494.0,0.248535]
[1742487846416,0.00058589,84496.0,84495.0,0.001]
[1742487846585,0.00058589,84496.0,84495.0,0.003]
[1742487846985,0.00058589,84496.0,84495.0,0.015835]
[1742487847185,0.00058589,84496.0,84495.0,0.13241003]
[1742487848015,0.30058589,84496.0,84495.0,0.001]
[1742487848396,0.30058589,84496.0,84494.0,0.237701]
[1742487848574,0.30058589,84496.0,84495.0,1.52214562]
[1742487848814,0.30058589,84496.0,84495.0,1.52314562]
[1742487849020,0.30058589,84496.0,84495.0,1.52214562]
[1742487849266,0.00058589,84496.0,84495.0,1.52214562]
[1742487849451,0.00058589,84496.0,84495.0,1.52614562]
[1742487849657,0.30058589,84496.0,84495.0,1.52614562]
[1742487849830,0.30058589,84496.0,84495.0,1.504]
[1742487850243,0.31241989,84496.0,84495.0,1.504]
[1742487850494,1.98895974,84496.0,84495.0,0.004]
[1742487850634,2.00804977,84496.0,84495.0,0.004]
[1742487850837,1.90169077,84496.0,84495.0,0.007]
[1742487851242,1.90169077,84496.0,84495.0,0.004]
[1742487851681,0.548558,84487.0,84486.0,0.0003386]
[1742487852130,0.775033,84487.0,84486.0,0.0003386]
[1742487852743,0.3,84487.0,84486.0,0.0003386]
[1742487852951,0.3,84487.0,84486.0,0.1552146]
[1742487853152,0.26457713,84496.0,84495.0,0.248535]
[1742487853331,0.00158589,84496.0,84495.0,0.248535]
[1742487853531,0.00158589,84496.0,84495.0,0.2367]
[1742487853940,0.00391672,84496.0,84495.0,0.2367]
[1742487854148,0.00158589,84496.0,84495.0,0.2367]
[1742487854369,0.00291714,84496.0,84495.0,0.248535]
[1742487855448,0.00058589,84496.0,84495.0,0.248535]
[1742487855663,0.00058589,84496.0,84495.0,0.36911003]
[1742487856041,0.00058589,84496.0,84495.0,0.37011003]
[1742487856251,0.00058589,84496.0,84495.0,0.36911003]
[1742487857039,0.00058589,84496.0,84495.0,0.37211003]
[1742487857539,0.00058589,84496.0,84495.0,0.36911003]
[1742487857740,0.00058589,84496.0,84495.0,0.36811003]
[1742487857982,0.00058589,84496.0,84495.0,0.39026567]
[1742487858185,0.00058589,84496.0,84495.0,0.39426567]
[1742487858389,0.00058589,84496.0,84495.0,0.41787077]
[1742487858561,0.00058589,84496.0,84495.0,1.91387077]
[1742487859020,0.00058589,84496.0,84495.0,1.92387077]
[1742487859219,0.00058589,84496.0,84495.0,1.91987077]
[1742487859655,8.9e-07,84496.0,84495.0,1.96647077]
[1742487859839,8.9e-07,84496.0,84495.0,1.96147077]
[1742487860259,8.9e-07,84496.0,84495.0,1.96747077]
[1742487860598,8.9e-07,84496.0,84495.0,1.96147077]
[1742487860805,8.9e-07,84496.0,84495.0,1.96747077]
[1742487861058,8.9e-07,84496.0,84495.0,1.97347077]
[1742487861569,8.9e-07,84496.0,84495.0,1.96747077]
[1742487861800,8.9e-07,84496.0,84495.0,1.97347077]
[1742487862007,8.9e-07,84496.0,84495.0,1.92587077]
[1742487862174,8.9e-07,84496.0,84495.0,2.07997747]
[1742487862377,8.9e-07,84496.0,84495.0,1.96040244]
[1742487862719,8.9e-07,84496.0,84495.0,1.95440244]